fUSD/lending_fUSD_20240820
["ID","MTS","AMOUNT","RATE_DAILY","PERIOD"]
[335342577,1724140232057,-1866.38643791,0.00010566,2]
[335342579,1724140232066,-2330.14158828,0.00010566,2]
[335342581,1724140232075,-500.0,0.0001057,2]
[335342583,1724140232085,-500.0,0.00010595,2]
[335342585,1724140232094,-461.18,0.000106,2]
[335342587,1724140232104,-600.0,0.00010612,2]
[335342589,1724140232113,-150.0,0.00010633,2]
[335342591,1724140232122,-1500.0,0.00010641,2]
[335342593,1724140232132,-150.0,0.00010644,2]
[335342595,1724140232140,-150.0,0.00010645,2]
[335342597,1724140232151,-300.0,0.0001065,2]
[335342599,1724140232160,-150.0,0.0001065,2]
[335342601,1724140232169,-150.0,0.00010655,2]
[335342603,1724140232178,-150.0,0.00010659,2]
[335342604,1724140232187,-150.0,0.00010659,2]
[335342606,1724140232196,-150.0,0.00010668,2]
[335342608,1724140232205,-150.0,0.00010668,2]
[335342610,1724140232214,-152.64908017,0.00010677,2]
[335342612,1724140232223,-150.0,0.00010677,2]
[335342614,1724140232232,-150.0,0.00010678,2]
[335342616,1724140232241,-150.0,0.00010683,2]
[335342618,1724140232250,-150.0,0.00010688,2]
[335342620,1724140232259,-1500.0,0.00010695,2]
[335342622,1724140232268,-158.88501481,0.00010698,2]
[335342624,1724140232277,-150.0,0.00010699,2]
[335342626,1724140232286,-1500.0,0.00010699,2]
[335342628,1724140232295,-3187.94330514,0.000107,2]
[335342630,1724140232307,-1500.7981108,0.000107,2]
[335342633,1724140232318,-283.74838406,0.000107,2]
[335342635,1724140232329,-343.93161594,0.00010702,2]
[335342648,1724140237498,-119.87838406,0.00010702,2]
[335342650,1724140237508,-150.0,0.00010703,2]
[335342651,1724140237518,-391.88821597,0.00010703,2]
[335342652,1724140237559,-1021.02570053,0.00010703,2]
[335342653,1724140237569,-179.85544557,0.00010706,2]
[335342654,1724140237578,-150.0,0.0001071,2]
[335342655,1724140237587,-150.0,0.00010711,2]
[335342656,1724140237596,-1709.69970942,0.00010713,2]
[335342657,1724140237605,-1500.0,0.00010714,2]
[335342658,1724140237615,-1500.0,0.00010716,2]
[335342659,1724140237624,-150.0,0.00010718,2]
[335342660,1724140237633,-985.3684343,0.00010719,2]
[335342661,1724140237644,-514.6315657,0.00010719,2]
[335342662,1724140237654,-150.0,0.0001072,2]
[335342663,1724140237663,-3.13315467,0.00010724,2]
[335342664,1724140237674,-326.82220256,0.00010724,2]
[335342665,1724140237686,-700.7096652,0.00010724,2]
[335342666,1724140237697,-469.33497757,0.00010724,2]
[335342667,1724140237707,-150.99,0.00010726,2]
[335342668,1724140237716,-150.0,0.00010726,2]
[335342669,1724140237726,-150.0,0.0001073,2]
[335342670,1724140237735,-150.0,0.00010732,2]
[335342671,1724140237745,-150.0,0.00010736,2]
[335342672,1724140237755,-150.0,0.00010745,2]
[335342673,1724140237764,-943.056,0.00010745,2]
[335342674,1724140237774,-500.0,0.00010749,2]
[335342675,1724140237783,-150.0,0.0001075,2]
[335342676,1724140237792,-150.0,0.00010759,2]
[335342677,1724140237802,-17136.17694353,0.00010765,2]
[335342678,1724140237811,-500.0,0.00010766,2]
[335342679,1724140237821,-150.0,0.00010767,2]
[335342680,1724140237830,-150.0,0.00010774,2]
[335342681,1724140237839,-150.0,0.00010777,2]
[335342682,1724140237848,-150.0,0.00010778,2]
[335342683,1724140237858,-150.0,0.00010778,2]
[335342684,1724140237868,-150.0,0.00010789,2]
[335342685,1724140237877,-1029.76331,0.0001079,2]
[335342686,1724140237886,-150.0,0.00010794,2]
[335342687,1724140237895,-500.0,0.00010797,2]
[335342688,1724140237905,-150.0,0.00010798,2]
[335342689,1724140237914,-857.9925,0.00010799,2]
[335342690,1724140237923,-236.7166,0.00010799,2]
[335342692,1724140237933,-531.33260631,0.00010799,2]
[335342693,1724140237941,-3380.75411442,0.000108,2]
[335342694,1724140237950,-677.14357184,0.000108,2]
[335342695,1724140237959,-715.08355841,0.000108,2]
[335342696,1724140237969,-215.46235398,0.000108,2]
[335342697,1724140237978,-5171.6437,0.000108,2]
[335342698,1724140238158,-245.67261442,0.000108,2]
[335342699,1724140238170,-150.0,0.00010801,2]
[335342700,1724140238179,-150.0,0.00010805,2]
[335342701,1724140238188,-150.0,0.00010806,2]
[335342702,1724140238197,-150.0,0.00010807,2]
[335342703,1724140238207,-150.0,0.00010807,2]
[335342704,1724140238216,-150.0,0.00010808,2]
[335342705,1724140238225,-150.0,0.00010826,2]
[335342706,1724140238234,-150.0,0.0001083,2]
[335342707,1724140238243,-150.0,0.00010834,2]
[335342708,1724140238252,-150.0,0.00010834,2]
[335342709,1724140238261,-1500.0,0.00010836,2]
[335342710,1724140238270,-1500.0,0.00010839,2]
[335342711,1724140238279,-150.0,0.00010845,2]
[335342712,1724140238288,-150.0,0.00010846,2]
[335342713,1724140238297,-150.0,0.00010847,2]
[335342714,1724140238306,-245.67261441,0.0001085,2]
[335342715,1724140238315,-546.33421771,0.00010852,2]
[335342716,1724140238324,-155.18506105,0.00010852,2]
[335342717,1724140238337,-150.0,0.00010853,2]
[335342718,1724140238346,-1500.0,0.00010856,2]
[335342719,1724140238355,-729.56564802,0.00010861,2]
[335342720,1724140238365,-500.0,0.0001087,2]
[335342721,1724140238375,-200.0,0.00010873,2]
[335342722,1724140238384,-195.53292348,0.00010873,2]
[335342723,1724140238393,-200.38227572,0.00010873,2]
[335342724,1724140238404,-1500.0,0.00010874,2]
[335342725,1724140238421,-150.0,0.00010879,2]
[335342726,1724140238430,-150.0,0.0001088,2]
[335342727,1724140238439,-150.0,0.00010886,2]
[335342728,1724140238448,-211.0133722,0.00010888,2]
[335342729,1724140238457,-155.0,0.00010888,2]
[335342730,1724140238466,-296.99205589,0.00010888,2]
[335342731,1724140238475,-203.03298078,0.0001089,2]
[335342732,1724140238485,-150.0,0.00010892,2]
[335342733,1724140238494,-1388.9848654,0.00010893,2]
[335342734,1724140238503,-3815.2785643,0.00010893,2]
[335342735,1724140238512,-11196.7857117,0.00010893,2]
[335342736,1724140238521,-1680.772729,0.00010893,2]
[335342737,1724140238530,-462.51191892,0.00010897,2]
[335342738,1724140238539,-703.93,0.00010898,2]
[335342739,1724140238548,-500.0,0.00010898,2]
[335342740,1724140238557,-5277.53835378,0.00010898,2]
[335342741,1724140238566,-220.64966884,0.00010898,2]
[335342742,1724140238575,-500.0,0.00010898,2]
[335342743,1724140238584,-500.0,0.00010898,2]
[335342744,1724140238594,-500.0,0.00010898,2]
[335342745,1724140238604,-500.0,0.00010898,2]
[335342746,1724140238613,-518.3404091,0.00010898,2]
[335342747,1724140238623,-513.6080162,0.00010898,2]
[335342748,1724140238632,-576.89259651,0.00010898,2]
[335342749,1724140238641,-604.23587182,0.00010898,2]
[335342750,1724140238650,-500.0,0.00010898,2]
[335342751,1724140238660,-500.0,0.00010898,2]
[335342752,1724140238669,-500.0,0.00010898,2]
[335342753,1724140238677,-500.0,0.00010898,2]
[335342754,1724140238685,-500.0,0.00010898,2]
[335342755,1724140238694,-500.0,0.00010898,2]
[335342756,1724140238703,-348.18980877,0.00010898,2]
[335342757,1724140238712,-500.0,0.00010898,2]
[335342758,1724140238721,-151.81644682,0.00010899,2]
[335342759,1724140238730,-985.73362732,0.00010899,2]
[335342760,1724140238739,-151.0,0.00010899,2]
[335342761,1724140238748,-151.0,0.00010899,2]
[335342762,1724140238757,-151.0,0.00010899,2]
[335342763,1724140238766,-703.93,0.00010899,2]
[335342764,1724140238776,-703.93,0.00010899,2]
[335342765,1724140238785,-703.93,0.00010899,2]
[335342766,1724140238794,-703.93,0.00010899,2]
[335342767,1724140238803,-703.93,0.00010899,2]
[335342768,1724140238813,-703.93,0.00010899,2]
[335342769,1724140238822,-703.93,0.00010899,2]
[335342770,1724140238832,-703.93,0.00010899,2]
[335342771,1724140238842,-703.93,0.00010899,2]
[335342772,1724140238852,-703.93,0.00010899,2]
[335342773,1724140238862,-703.93,0.00010899,2]
[335342774,1724140238872,-158.808401,0.00010899,2]
[335342775,1724140238882,-703.93,0.00010899,2]
[335342776,1724140238891,-703.93,0.00010899,2]
[335342777,1724140238900,-703.93,0.00010899,2]
[335342778,1724140238911,-703.93,0.00010899,2]
[335342779,1724140238920,-703.93,0.00010899,2]
[335342780,1724140238930,-703.93,0.00010899,2]
[335342781,1724140238939,-703.93,0.00010899,2]
[335342782,1724140238949,-177.63654,0.00010899,2]
[335342783,1724140238958,-177.63654,0.00010899,2]
[335342784,1724140238967,-151.0,0.00010899,2]
[335342785,1724140238976,-175.349527,0.00010899,2]
[335342786,1724140238985,-500.0,0.00010899,2]
[335342787,1724140238994,-500.0,0.00010899,2]
[335342788,1724140239003,-500.0,0.00010899,2]
[335342789,1724140239012,-317.57526526,0.00010899,2]
[335342790,1724140239021,-151.0,0.00010899,2]
[335342791,1724140239030,-151.0,0.00010899,2]
[335342792,1724140239039,-567.632171,0.00010899,2]
[335342793,1724140239048,-567.632171,0.00010899,2]
[335342794,1724140239058,-567.632171,0.00010899,2]
[335342795,1724140239067,-567.632171,0.00010899,2]
[335342796,1724140239076,-151.0,0.00010899,2]
[335342797,1724140239085,-151.0,0.00010899,2]
[335342798,1724140239094,-274.146835,0.00010899,2]
[335342799,1724140239103,-151.0,0.00010899,2]
[335342800,1724140239111,-151.0,0.00010899,2]
[335342801,1724140239120,-151.0,0.00010899,2]
[335342802,1724140239130,-151.0,0.00010899,2]
[335342803,1724140239139,-151.0,0.00010899,2]
[335342804,1724140239148,-151.0,0.00010899,2]
[335342805,1724140239158,-151.0,0.00010899,2]
[335342806,1724140239167,-151.0,0.00010899,2]
[335342807,1724140239176,-203.798851,0.00010899,2]
[335342808,1724140239184,-203.798851,0.00010899,2]
[335342809,1724140239194,-151.0,0.00010899,2]
[335342810,1724140239203,-203.798851,0.00010899,2]
[335342811,1724140239212,-151.0,0.00010899,2]
[335342812,1724140239222,-203.798851,0.00010899,2]
[335342813,1724140239231,-500.0,0.00010899,2]
[335342814,1724140239240,-500.0,0.00010899,2]
[335342815,1724140239251,-500.0,0.00010899,2]
[335342816,1724140239260,-500.0,0.00010899,2]
[335342817,1724140239269,-500.0,0.00010899,2]
[335342818,1724140239278,-500.0,0.00010899,2]
[335342819,1724140239287,-486.94072833,0.00010899,2]
[335342820,1724140239297,-500.0,0.00010899,2]
[335342821,1724140239306,-500.0,0.00010899,2]
[335342822,1724140239315,-500.0,0.00010899,2]
[335342823,1724140239325,-500.0,0.00010899,2]
[335342824,1724140239337,-500.0,0.00010899,2]
[335342825,1724140239346,-500.0,0.00010899,2]
[335342826,1724140239355,-500.0,0.00010899,2]
[335342827,1724140239364,-500.0,0.00010899,2]
[335342828,1724140239374,-500.0,0.00010899,2]
[335342829,1724140239383,-500.0,0.00010899,2]
[335342830,1724140239392,-443.26993823,0.00010899,2]
[335342831,1724140239401,-12570.14348546,0.00010899,2]
[335342832,1724140239467,-1072.50233623,0.00010899,2]
[335342833,1724140239478,-3500.94008137,0.00010899,2]
[335342834,1724140239487,-3514.59732663,0.00010899,2]
[335342835,1724140239498,-1969.22712928,0.00010899,2]
[335342836,1724140239509,-4795.42269386,0.00010899,2]
[335342837,1724140239535,-727.29448223,0.00010899,2]
[335342838,1724140239545,-6137.04427106,0.00010899,2]
[335342839,1724140239554,-500.0,0.00010899,2]
[335342840,1724140239564,-500.0,0.00010899,2]
[335342841,1724140239572,-500.0,0.00010899,2]
[335342842,1724140239582,-500.0,0.00010899,2]
[335342843,1724140239591,-500.0,0.00010899,2]
[335342844,1724140239600,-500.0,0.00010899,2]
[335342845,1724140239609,-644.14,0.00010899,2]
[335342846,1724140239619,-1710.31510194,0.00010899,2]
[335342847,1724140239630,-15433.27080112,0.00010899,2]
[335342848,1724140239639,-9225.72919888,0.00010899,2]
[335342849,1724140239650,-1654.53650654,0.00010899,2]
[335342850,1724140239661,-1470.87908501,0.00010899,2]
[335342851,1724140239826,-500.0,0.00010898,2]
[335342852,1724140239837,-676.56058382,0.00010899,2]
[335342853,1724140239867,-4115.88052881,0.00010899,2]
[335342854,1724140239877,-17143.58590306,0.00010899,2]
[335342855,1724140239886,-17143.58590306,0.00010899,2]
[335342856,1724140239895,-4315.23225185,0.00010899,2]
[335342857,1724140239906,-288.82,0.00010899,2]
[335342858,1724140239922,-278.90148228,0.00010899,2]
[335342859,1724140239933,-12260.63216893,0.00010899,2]
[335342860,1724140239942,-17143.58590306,0.00010899,2]
[335342861,1724140239950,-17143.58590306,0.00010899,2]
[335342862,1724140239960,-151.0,0.00010899,2]
[335342863,1724140239969,-151.0,0.00010899,2]
[335342864,1724140239978,-151.0,0.00010899,2]
[335342865,1724140239987,-261.160362,0.00010899,2]
[335342866,1724140239996,-500.0,0.00010899,2]
[335342867,1724140240007,-500.0,0.00010899,2]
[335342868,1724140240016,-500.0,0.00010899,2]
[335342869,1724140240024,-500.0,0.00010899,2]
[335342870,1724140240034,-168.55616119,0.00010899,2]
[335342871,1724140240043,-151.0,0.00010899,2]
[335342872,1724140240052,-151.0,0.00010899,2]
[335342873,1724140240062,-151.0,0.00010899,2]
[335342874,1724140240071,-301.446913,0.00010899,2]
[335342875,1724140240081,-301.446913,0.00010899,2]
[335342876,1724140240090,-301.446913,0.00010899,2]
[335342877,1724140240099,-151.0,0.00010899,2]
[335342878,1724140240108,-151.0,0.00010899,2]
[335342879,1724140240118,-151.0,0.00010899,2]
[335342880,1724140240128,-151.0,0.00010899,2]
[335342881,1724140240138,-151.0,0.00010899,2]
[335342882,1724140240149,-151.0,0.00010899,2]
[335342883,1724140240159,-301.446913,0.00010899,2]
[335342884,1724140240168,-301.446913,0.00010899,2]
[335342885,1724140240176,-301.446913,0.00010899,2]
[335342886,1724140240188,-457.099867,0.00010899,2]
[335342887,1724140240199,-457.099867,0.00010899,2]
[335342888,1724140240210,-457.099867,0.00010899,2]
[335342889,1724140240220,-457.099867,0.00010899,2]
[335342890,1724140240229,-457.099867,0.00010899,2]
[335342891,1724140240238,-457.099867,0.00010899,2]
[335342893,1724140240248,-500.0,0.00010899,2]
[335342894,1724140240257,-500.0,0.00010899,2]
[335342896,1724140240267,-500.0,0.00010899,2]
[335342898,1724140240276,-649.59726884,0.00010899,2]
[335342900,1724140240286,-151.0,0.00010899,2]
[335342902,1724140240295,-151.0,0.00010899,2]
[335342904,1724140240304,-151.0,0.00010899,2]
[335342905,1724140240313,-263.424592,0.00010899,2]
[335342907,1724140240322,-151.0,0.00010899,2]
[335342909,1724140240333,-151.0,0.00010899,2]
[335342911,1724140240342,-151.0,0.00010899,2]
[335342913,1724140240351,-151.0,0.00010899,2]
[335342915,1724140240360,-151.0,0.00010899,2]
[335342917,1724140240370,-151.0,0.00010899,2]
[335342918,1724140240379,-151.0,0.00010899,2]
[335342920,1724140240388,-151.0,0.00010899,2]
[335342922,1724140240397,-151.0,0.00010899,2]
[335342924,1724140240408,-151.0,0.00010899,2]
[335342926,1724140240417,-151.0,0.00010899,2]
[335342928,1724140240426,-151.0,0.00010899,2]
[335342930,1724140240435,-925.481615,0.00010899,2]
[335342931,1724140240444,-925.481615,0.00010899,2]
[335342933,1724140240454,-925.481615,0.00010899,2]
[335342935,1724140240463,-151.667995,0.00010899,2]
[335342937,1724140240471,-925.481615,0.00010899,2]
[335342939,1724140240480,-925.481615,0.00010899,2]
[335342940,1724140240489,-925.481615,0.00010899,2]
[335342942,1724140240499,-151.0,0.00010899,2]
[335342944,1724140240509,-151.0,0.00010899,2]
[335342946,1724140240518,-151.0,0.00010899,2]
[335342947,1724140240528,-151.0,0.00010899,2]
[335342949,1724140240537,-151.0,0.00010899,2]
[335342950,1724140240546,-152.485505,0.00010899,2]
[335342951,1724140240555,-151.0,0.00010899,2]
[335342952,1724140240563,-249.763657,0.00010899,2]
[335342953,1724140240572,-249.729647,0.00010899,2]
[335342954,1724140240581,-151.0,0.00010899,2]
[335342955,1724140240590,-151.0,0.00010899,2]
[335342956,1724140240599,-151.0,0.00010899,2]
[335342957,1724140240607,-151.0,0.00010899,2]
[335342958,1724140240618,-151.0,0.00010899,2]
[335342959,1724140240627,-151.0,0.00010899,2]
[335342960,1724140240637,-151.658204,0.00010899,2]
[335342961,1724140240646,-500.0,0.00010899,2]
[335342962,1724140240657,-500.0,0.00010899,2]
[335342963,1724140240667,-500.0,0.00010899,2]
[335342964,1724140240676,-500.0,0.00010899,2]
[335342965,1724140240685,-500.0,0.00010899,2]
[335342966,1724140240694,-500.0,0.00010899,2]
[335342967,1724140240703,-500.0,0.00010899,2]
[335342968,1724140240714,-287.05474177,0.00010899,2]
[335342969,1724140240723,-151.0,0.00010899,2]
[335342970,1724140240732,-151.0,0.00010899,2]
[335342971,1724140240741,-151.0,0.00010899,2]
[335342972,1724140240751,-500.0,0.00010899,2]
[335342973,1724140240759,-500.0,0.00010899,2]
[335342974,1724140240768,-500.0,0.00010899,2]
[335342975,1724140240777,-478.74507186,0.00010899,2]
[335342976,1724140240787,-500.0,0.00010899,2]
[335342977,1724140240795,-500.0,0.00010899,2]
[335342978,1724140240804,-500.0,0.00010899,2]
[335342979,1724140240814,-500.0,0.00010899,2]
[335342980,1724140240823,-500.0,0.00010899,2]
[335342981,1724140240832,-500.0,0.00010899,2]
[335342982,1724140240841,-598.70556868,0.00010899,2]
[335342983,1724140240850,-270.358923,0.00010899,2]
[335342984,1724140240859,-270.358923,0.00010899,2]
[335342985,1724140240868,-270.358923,0.00010899,2]
[335342986,1724140240877,-270.358923,0.00010899,2]
[335342987,1724140240886,-270.358923,0.00010899,2]
[335342988,1724140240895,-270.358923,0.00010899,2]
[335342989,1724140240904,-270.358923,0.00010899,2]
[335342990,1724140240914,-270.358923,0.00010899,2]
[335342991,1724140240923,-270.358923,0.00010899,2]
[335342992,1724140240932,-513.34298267,0.00010899,2]
[335342993,1724140240942,-270.358923,0.00010899,2]
[335342994,1724140240952,-151.0,0.00010899,2]
[335342995,1724140240961,-151.0,0.00010899,2]
[335342996,1724140240971,-151.0,0.00010899,2]
[335342997,1724140240981,-151.0,0.00010899,2]
[335342998,1724140240990,-151.0,0.00010899,2]
[335342999,1724140241000,-215.953505,0.00010899,2]
[335343000,1724140241010,-215.953505,0.00010899,2]
[335343001,1724140241019,-151.0,0.00010899,2]
[335343002,1724140241029,-151.0,0.00010899,2]
[335343003,1724140241038,-292.285352,0.00010899,2]
[335343004,1724140241047,-215.953505,0.00010899,2]
[335343005,1724140241057,-215.953505,0.00010899,2]
[335343006,1724140241067,-215.953505,0.00010899,2]
[335343007,1724140241077,-215.953505,0.00010899,2]
[335343008,1724140241086,-215.953505,0.00010899,2]
[335343009,1724140241097,-215.953505,0.00010899,2]
[335343010,1724140241106,-215.953505,0.00010899,2]
[335343011,1724140241115,-215.953505,0.00010899,2]
[335343012,1724140241124,-500.0,0.00010899,2]
[335343013,1724140241133,-500.0,0.00010899,2]
[335343014,1724140241141,-500.0,0.00010899,2]
[335343015,1724140241150,-500.0,0.00010899,2]
[335343016,1724140241160,-500.0,0.00010899,2]
[335343017,1724140241169,-151.0,0.00010899,2]
[335343018,1724140241178,-426.53695058,0.00010899,2]
[335343019,1724140241188,-500.0,0.00010899,2]
[335343020,1724140241199,-151.0,0.00010899,2]
[335343021,1724140241209,-500.0,0.00010899,2]
[335343022,1724140241219,-500.0,0.00010899,2]
[335343023,1724140241230,-151.0,0.00010899,2]
[335343024,1724140241240,-151.0,0.00010899,2]
[335343025,1724140241249,-500.0,0.00010899,2]
[335343026,1724140241259,-151.0,0.00010899,2]
[335343027,1724140241268,-500.0,0.00010899,2]
[335343028,1724140241277,-500.0,0.00010899,2]
[335343029,1724140241287,-500.0,0.00010899,2]
[335343030,1724140241296,-166.91244572,0.00010899,2]
[335343031,1724140241306,-151.0,0.00010899,2]
[335343032,1724140241315,-151.0,0.00010899,2]
[335343033,1724140241325,-151.0,0.00010899,2]
[335343034,1724140241338,-151.0,0.00010899,2]
[335343035,1724140241347,-151.0,0.00010899,2]
[335343036,1724140241357,-500.0,0.00010899,2]
[335343037,1724140241366,-500.0,0.00010899,2]
[335343038,1724140241376,-500.0,0.00010899,2]
[335343039,1724140241385,-151.0,0.00010899,2]
[335343040,1724140241395,-151.0,0.00010899,2]
[335343041,1724140241404,-312.32013917,0.00010899,2]
[335343042,1724140241415,-286.875234,0.00010899,2]
[335343043,1724140241424,-151.0,0.00010899,2]
[335343044,1724140241433,-328.08077302,0.00010899,2]
[335343045,1724140241443,-151.0,0.00010899,2]
[335343046,1724140241453,-151.0,0.00010899,2]
[335343047,1724140241462,-151.0,0.00010899,2]
[335343048,1724140241472,-151.0,0.00010899,2]
[335343049,1724140241481,-235.72232,0.00010899,2]
[335343050,1724140241490,-151.0,0.00010899,2]
[335343051,1724140241500,-151.0,0.00010899,2]
[335343052,1724140241509,-151.0,0.00010899,2]
[335343053,1724140241519,-207.242612,0.00010899,2]
[335343054,1724140241528,-152.896181,0.00010899,2]
[335343055,1724140241537,-151.0,0.00010899,2]
[335343056,1724140241547,-246.66689,0.00010899,2]
[335343057,1724140241556,-151.0,0.00010899,2]
[335343058,1724140241566,-246.66689,0.00010899,2]
[335343059,1724140241575,-151.0,0.00010899,2]
[335343060,1724140241585,-246.66689,0.00010899,2]
[335343061,1724140241594,-151.0,0.00010899,2]
[335343062,1724140241604,-246.66689,0.00010899,2]
[335343063,1724140241614,-246.66689,0.00010899,2]
[335343064,1724140241624,-246.66689,0.00010899,2]
[335343065,1724140241633,-246.66689,0.00010899,2]
[335343066,1724140241642,-246.66689,0.00010899,2]
[335343067,1724140241652,-246.66689,0.00010899,2]
[335343068,1724140241662,-246.66689,0.00010899,2]
[335343069,1724140241671,-151.0,0.00010899,2]
[335343070,1724140241680,-151.0,0.00010899,2]
[335343071,1724140241689,-151.0,0.00010899,2]
[335343072,1724140241699,-151.589132,0.00010899,2]
[335343073,1724140241852,-151.0,0.00010899,2]
[335343074,1724140241863,-151.0,0.00010899,2]
[335343075,1724140241873,-332.19513,0.00010899,2]
[335343076,1724140241883,-287.03671,0.00010899,2]
[335343077,1724140241893,-332.19513,0.00010899,2]
[335343078,1724140241902,-332.19513,0.00010899,2]
[335343079,1724140241913,-151.0,0.00010899,2]
[335343080,1724140241922,-332.19513,0.00010899,2]
[335343081,1724140241931,-151.0,0.00010899,2]
[335343082,1724140241941,-332.19513,0.00010899,2]
[335343083,1724140241950,-10000.0,0.00010899,2]
[335343084,1724140241959,-332.19513,0.00010899,2]
[335343085,1724140241969,-6134.2801494,0.00010899,2]
[335343086,1724140242146,-2495.58714316,0.00010899,2]
[335343087,1724140242159,-586.7496341,0.00010899,2]
[335343088,1724140242170,-783.38307334,0.00010899,2]
[335343089,1724140242179,-332.19513,0.00010899,2]
[335343090,1724140242188,-126.9513486,0.00010899,2]
[335343091,1724140242204,-23.56610543,0.00010899,2]
[335343092,1724140242213,-2670.08299592,0.00010899,2]
[335343093,1724140242224,-311.6,0.00010899,2]
[335343102,1724140242650,-200.0,9.989e-05,2]
[335343103,1724140242660,-192.29490377,0.00010899,2]
[335343104,1724140242702,-6826.02210031,0.00010899,2]
[335343105,1724140242712,-332.19513,0.00010899,2]
[335343106,1724140242722,-10000.0,0.00010899,2]
[335343107,1724140242730,-9242.54740335,0.00010899,2]
[335343108,1724140242741,-261.4769987,0.00010899,2]
[335343109,1724140242752,-495.97559795,0.00010899,2]
[335343110,1724140242762,-135.6706427,0.00010899,2]
[335343111,1724140242772,-196.5244873,0.00010899,2]
[335343112,1724140242781,-332.19513,0.00010899,2]
[335343113,1724140242790,-471.2803827,0.00010899,2]
[335343118,1724140243184,-529.60407928,0.00010899,2]
[335343121,1724140243196,-600.93099256,0.00010899,2]
[335343124,1724140243209,-636.87818,0.00010899,2]
[335343127,1724140243219,-2396.5336603,0.00010899,2]
[335343129,1724140243230,-515.65876617,0.00010899,2]
[335343133,1724140243241,-305.20127118,0.00010899,2]
[335343136,1724140243252,-700.1734372,0.00010899,2]
[335343141,1724140243272,-500.0,0.00010898,2]
[335343142,1724140243281,-3843.73923061,0.00010899,2]
[335343145,1724140243291,-621.56112933,0.00010899,2]
[335343149,1724140243301,-461.72228719,0.00010899,2]
[335343152,1724140243312,-6545.41599038,0.00010899,2]
[335343154,1724140243324,-2371.3005931,0.00010899,2]
[335343156,1724140243338,-10000.0,0.00010899,2]
[335343157,1724140243347,-1594.04886001,0.00010899,2]
[335343159,1724140243358,-8405.95113999,0.00010899,2]
[335343161,1724140243367,-10000.0,0.00010899,2]
[335343163,1724140243377,-500.0,0.00010899,2]
[335343164,1724140243387,-151.0,0.00010899,2]
[335343165,1724140243396,-500.0,0.00010899,2]
[335343166,1724140243406,-151.305312,0.00010899,2]
[335343167,1724140243416,-500.0,0.00010899,2]
[335343168,1724140243425,-500.0,0.00010899,2]
[335343169,1724140243434,-500.0,0.00010899,2]
[335343170,1724140243443,-500.0,0.00010899,2]
[335343171,1724140243453,-10000.0,0.00010899,2]
[335343172,1724140243462,-500.0,0.00010899,2]
[335343173,1724140243471,-1740.036413,0.00010899,2]
[335343174,1724140243480,-500.0,0.00010899,2]
[335343175,1724140243489,-181.44479425,0.00010899,2]
[335343177,1724140243498,-151.0,0.00010899,2]
[335343179,1724140243509,-151.0,0.00010899,2]
[335343181,1724140243519,-151.0,0.00010899,2]
[335343182,1724140243528,-151.0,0.00010899,2]
[335343184,1724140243537,-588.79264427,0.00010899,2]
[335343186,1724140243546,-165.529153,0.00010899,2]
[335343188,1724140243555,-165.529153,0.00010899,2]
[335343190,1724140243564,-165.529153,0.00010899,2]
[335343192,1724140243572,-165.529153,0.00010899,2]
[335343193,1724140243581,-165.529153,0.00010899,2]